[Event "FIDE WYCC Open U14 2023"]
[Site "Montesilvano"]
[Date "2023.11.24"]
[Round "11.15"]
[White "Katsanis, Vasileios Dim"]
[Black "Davudov, Tunar"]
[Result "0-1"]
[ECO "A65"]
[WhiteElo "2173"]
[BlackElo "2000"]
[Annotator "RC"]
[PlyCount "110"]
[EventDate "2023.11.13"]
[EventType "swiss"]
[EventCountry "ITA"]
[SourceTitle "playchess.com"]
[Source "ChessBase"]
[SourceQuality "1"]
[TimeControl "40/5400+30:1800+30"]

1. d4 {[%emt 0:00:05]} Nf6 {[%emt 0:00:10]} 2. c4 {[%emt 0:00:02]} c5 {[%emt 0:00:17]} 3. d5 {[%emt 0:00:08]} e6 {[%emt 0:00:38]} 4. Nc3 {[%emt 0:00:13]} exd5 {[%emt 0:00:51]} 5. cxd5 {[%emt 0:00:06]} d6 {[%emt 0:00:14]} 6. e4 {[%emt 0:00:28]} g6 {[%emt 0:06:20]} 7. Bd3 {[%emt 0:00:59]} Bg7 {[%emt 0:00:51]} 8. h3 {[%emt 0:00:11]} O-O {[%emt 0:01:52]} 9. Nf3 {[%emt 0:00:27]} Re8 {[%emt 0:05:10]} 10. O-O {[%emt 0:01:27]} b6 {[%emt 0:01:18]} 11. Re1 {[%emt 0:01:42]} Ba6 {[%emt 0:03:02]} 12. Qe2 {[%emt 0:13:59]} Bxd3 {[%emt 0:03:37]} 13. Qxd3 {[%emt 0:00:08]} a6 {[%emt 0:05:37]} 14. a4 {[%emt 0:00:59]} Nbd7 {[%emt 0:01:06]} 15. Bf4 {[%emt 0:09:42]} Qc7 {[%emt 0:04:08]} 16. g4 {[%emt 0:13:15]} c4 {[%emt 0:05:29]} 17. Qf1 {[%emt 0:07:02]} Qc5 {[%emt 0:06:22]} 18. Re2 {[%emt 0:10:27]} b5 {[%emt 0:22:07]} 19. Be3 {[%emt 0:03:59]} Qc8 {[%emt 0:01:22]} 20. axb5 {[%emt 0:01:17]} axb5 {[%emt 0:07:08]} 21. Rxa8 {[%emt 0:00:44]} Qxa8 {[%emt 0:00:01]} 22. Nxb5 {[%emt 0:01:19]} Qb8 {[%emt 0:00:17]} 23. Nc3 {[%emt 0:05:57]} Nxe4 {[%emt 0:00:33]} 24. Nxe4 {[%emt 0:00:18]} Rxe4 {[%emt 0:00:07]} 25. Rc2 {[%emt 0:04:20]} Qb3 {[%emt 0:01:27]} 26. Qc1 {[%emt 0:01:18]} c3 {[%emt 0:02:19]} 27. bxc3 {[%emt 0:01:05]} Qxd5 {[%emt 0:01:10]} 28. Rd2 {[%emt 0:02:33]} Qc6 {[%emt 0:00:26]} 29. Qd1 {[%emt 0:01:09]} Bf8 {[%emt 0:05:00]} 30. Bd4 {[%emt 0:04:00]} Rf4 {[%emt 0:01:40]} 31. Rd3 {[%emt 0:00:13]} Qb5 {[%emt 0:02:41]} 32. Re3 {[%emt 0:05:26]} h5 {[%emt 0:01:20]} 33. Nh2 {[%emt 0:00:30]} hxg4 {[%emt 0:03:34]} 34. Nxg4 {[%emt 0:02:47]} f5 {[%emt 0:04:57]} 35. Nh2 {[%emt 0:00:53]} Qd5 {[%emt 0:01:12]} 36. Rg3 {[%emt 0:02:21]} Kf7 {[%emt 0:02:58]} 37. Nf3 {[%emt 0:03:37]} Be7 {[%emt 0:00:13]} 38. Ne1 {[%emt 0:02:13]} Ne5 {[%emt 0:00:54]} 39. Qd2 {[%emt 0:01:19]} Re4 {[%emt 0:00:38]} 40. Nd3 {[%emt 0:00:00]} Bh4 {[%emt 0:00:00]} 41. Bxe5 {[%emt 0:01:36]} dxe5 {[%emt 0:11:18]} 42. Rf3 {[%emt 0:08:12]} Kg7 {[%emt 0:05:22]} 43. Qc2 {[%emt 0:04:43]} Rc4 {[%emt 0:02:23]} 44. Re3 {[%emt 0:00:25]} e4 {[%emt 0:00:30]} 45. Nb2 {[%emt 0:00:44]} Rc7 {[%emt 0:00:41]} 46. c4 {[%emt 0:02:50]} Qd4 {[%emt 0:00:44]} 47. Kg2 {[%emt 0:01:39]} Bf6 {[%emt 0:01:35]} 48. Rb3 {[%emt 0:00:07]} f4 {[%emt 0:00:54]} 49. Rb5 {[%emt 0:01:20]} f3+ {[%emt 0:00:38]} 50. Kg1 {[%emt 0:00:21]} Qd7 {[%emt 0:01:48]} 51. Qxe4 {[%emt 0:01:00]} Qxh3 {[%emt 0:00:12]} 52. Rg5 {[%emt 0:00:38]} Bxg5 {[%emt 0:00:20]} 53. Qe5+ {[%emt 0:00:06]} Kh6 {[%emt 0:00:06]} 54. Qh8+ {[%emt 0:00:16]} Rh7 {[%emt 0:00:07]} 55. Qf8+ {[%emt 0:00:02]} Kh5 {[%emt 0:00:06]} 0-1

[Event "FIDE WYCC Open U14 2023"]
[Site "Montesilvano"]
[Date "2023.11.24"]
[Round "11.16"]
[White "Schuricht, Emil Frederick"]
[Black "Goh, Zi Han"]
[Result "0-1"]
[ECO "E70"]
[WhiteElo "1998"]
[BlackElo "2333"]
[Annotator "RC"]
[PlyCount "114"]
[EventDate "2023.11.13"]
[EventType "swiss"]
[EventCountry "ITA"]
[SourceTitle "playchess.com"]
[Source "ChessBase"]
[SourceQuality "1"]
[TimeControl "40/5400+30:1800+30"]

1. d4 {[%emt 0:00:04]} Nf6 {[%emt 0:01:17]} 2. c4 {[%emt 0:00:06]} g6 {[%emt 0:00:07]} 3. Nc3 {[%emt 0:00:15]} Bg7 {[%emt 0:00:06]} 4. e4 {[%emt 0:00:11]} d6 {[%emt 0:00:09]} 5. Nge2 {[%emt 0:00:29]} O-O {[%emt 0:00:35]} 6. g3 {[%emt 0:00:05]} Nbd7 {[%emt 0:04:35]} 7. Bg2 {[%emt 0:00:17]} e5 {[%emt 0:00:33]} 8. O-O {[%emt 0:00:19]} a5 {[%emt 0:04:04]} 9. h3 {[%emt 0:06:33]} exd4 {[%emt 0:03:07]} 10. Nxd4 {[%emt 0:02:50]} Nc5 {[%emt 0:02:52]} 11. b3 {[%emt 0:05:42]} c6 {[%emt 0:02:24]} 12. Re1 {[%emt 0:03:57]} Re8 {[%emt 0:01:07]} 13. Bf4 {[%emt 0:14:31]} h6 {[%emt 0:13:23]} 14. Kh2 {[%emt 0:16:34]} Qb6 {[%emt 0:24:32]} 15. f3 {[%emt 0:02:33]} Qc7 {[%emt 0:07:08]} 16. g4 {[%emt 0:04:45]} h5 {[%emt 0:08:51]} 17. g5 {[%emt 0:06:06]} Nfd7 {[%emt 0:00:21]} 18. Kh1 {[%emt 0:05:12]} Ne5 {[%emt 0:01:38]} 19. Re3 {[%emt 0:04:08]} Qb6 {[%emt 0:06:07]} 20. Nce2 {[%emt 0:01:11]} a4 {[%emt 0:00:50]} 21. Rb1 {[%emt 0:02:28]} axb3 {[%emt 0:01:02]} 22. axb3 {[%emt 0:00:02]} Ne6 {[%emt 0:05:01]} 23. Bh2 {[%emt 0:01:08]} Nd7 {[%emt 0:03:39]} 24. Nxe6 {[%emt 0:01:03]} Rxe6 {[%emt 0:00:33]} 25. Rd3 {[%emt 0:01:21]} Ne5 {[%emt 0:03:17]} 26. Rd2 {[%emt 0:00:15]} Re8 {[%emt 0:02:16]} 27. f4 {[%emt 0:00:56]} Nd7 {[%emt 0:00:05]} 28. Rxd6 {[%emt 0:00:49]} Nc5 {[%emt 0:00:45]} 29. Bg1 {[%emt 0:02:06]} Qb4 {[%emt 0:00:28]} 30. Rd8 {[%emt 0:05:20]} Be6 {[%emt 0:00:50]} 31. Rxe8+ {[%emt 0:03:14]} Rxe8 {[%emt 0:00:04]} 32. Qc2 {[%emt 0:01:10]} Rd8 {[%emt 0:01:21]} 33. f5 {[%emt 0:00:01]} Bc8 {[%emt 0:00:33]} 34. fxg6 {[%emt 0:01:59]} fxg6 {[%emt 0:00:15]} 35. Nf4 {[%emt 0:03:10]} Kh7 {[%emt 0:00:18]} 36. Bxc5 {[%emt 0:03:12]} Qxc5 {[%emt 0:00:04]} 37. e5 {[%emt 0:00:10]} Bf5 {[%emt 0:00:34]} 38. Be4 {[%emt 0:00:02]} Rd2 {[%emt 0:02:15]} 39. Bxf5 {[%emt 0:01:12]} Rxc2 {[%emt 0:00:03]} 40. Bxc2 {[%emt 0:00:00]} Qf2 {[%emt 0:00:00]} 41. Bxg6+ {[%emt 0:02:37]} Kg8 {[%emt 0:05:13]} 42. Nd3 {[%emt 0:07:27]} Qg3 {[%emt 0:10:06]} 43. Re1 {[%emt 0:08:42]} Qxh3+ {[%emt 0:01:51]} 44. Kg1 {[%emt 0:00:22]} Qg3+ {[%emt 0:00:53]} 45. Kf1 {[%emt 0:01:14]} Qxg5 {[%emt 0:00:56]} 46. Be4 {[%emt 0:00:47]} Kf8 {[%emt 0:01:02]} 47. Nc5 {[%emt 0:05:29]} Qf4+ {[%emt 0:02:28]} 48. Ke2 {[%emt 0:01:04]} Ke7 {[%emt 0:01:25]} 49. Kd3 {[%emt 0:06:34]} Qf2 {[%emt 0:02:49]} 50. Rh1 {[%emt 0:02:03]} Qxc5 {[%emt 0:00:30]} 51. Rxh5 {[%emt 0:00:03]} Bxe5 {[%emt 0:00:21]} 52. Rh7+ {[%emt 0:00:12]} Kd6 {[%emt 0:00:10]} 53. Rh6+ {[%emt 0:00:17]} Kc7 {[%emt 0:00:05]} 54. Rh7+ {[%emt 0:00:04]} Kb6 {[%emt 0:00:06]} 55. Rd7 {[%emt 0:00:06]} Qb4 {[%emt 0:00:13]} 56. Kc2 {[%emt 0:00:11]} Qc3+ {[%emt 0:00:07]} 57. Kb1 {[%emt 0:00:13]} Qb2# {[%emt 0:00:05]} 0-1

[Event "FIDE WYCC Open U14 2023"]
[Site "Montesilvano"]
[Date "2023.11.24"]
[Round "11.17"]
[White "Medhus, Vitus Bondo"]
[Black "George Micheal, Kevin"]
[Result "0-1"]
[ECO "B23"]
[WhiteElo "2108"]
[BlackElo "2317"]
[Annotator "RC"]
[PlyCount "56"]
[EventDate "2023.11.13"]
[EventType "swiss"]
[EventCountry "ITA"]
[SourceTitle "playchess.com"]
[Source "ChessBase"]
[SourceQuality "1"]
[TimeControl "40/5400+30:1800+30"]

1. e4 {[%emt 0:00:07]} c5 {[%emt 0:01:37]} 2. Nc3 {[%emt 0:00:13]} e6 {[%emt 0:00:04]} 3. Nge2 {[%emt 0:00:28]} Nc6 {[%emt 0:01:16]} 4. g3 {[%emt 0:01:21]} d5 {[%emt 0:00:14]} 5. exd5 {[%emt 0:00:15]} exd5 {[%emt 0:00:24]} 6. d4 {[%emt 0:00:14]} cxd4 {[%emt 0:01:15]} 7. Nxd4 {[%emt 0:00:31]} Nf6 {[%emt 0:00:06]} 8. Bg2 {[%emt 0:00:51]} Bg4 {[%emt 0:01:48]} 9. Nde2 {[%emt 0:01:03]} Bb4 {[%emt 0:02:49]} 10. f3 {[%emt 0:14:32]} Be6 {[%emt 0:08:42]} 11. O-O {[%emt 0:02:13]} d4 {[%emt 0:15:04]} 12. Ne4 {[%emt 0:05:19]} Nxe4 {[%emt 0:01:26]} 13. fxe4 {[%emt 0:00:06]} Bc4 {[%emt 0:00:18]} 14. b3 {[%emt 0:11:27]} Ba6 {[%emt 0:02:10]} 15. Rf5 {[%emt 0:00:48]} Qb6 {[%emt 0:17:39]} 16. Kh1 {[%emt 0:06:21]} O-O {[%emt 0:05:48]} 17. Bb2 {[%emt 0:06:46]} Bxe2 {[%emt 0:08:31]} 18. Qxe2 {[%emt 0:00:42]} Bc3 {[%emt 0:00:03]} 19. Bxc3 {[%emt 0:06:22]} dxc3 {[%emt 0:00:03]} 20. Qc4 {[%emt 0:01:53]} Nd4 {[%emt 0:07:52]} 21. Rf2 {[%emt 0:00:43]} Nxb3 {[%emt 0:00:50]} 22. Rxf7 {[%emt 0:01:26]} Rxf7 {[%emt 0:01:18]} 23. Rf1 {[%emt 0:00:13]} Raf8 {[%emt 0:02:55]} 24. Rxf7 {[%emt 0:11:39]} Rxf7 {[%emt 0:00:31]} 25. e5 {[%emt 0:01:50]} Qd4 {[%emt 0:01:30]} 26. Qc8+ {[%emt 0:02:01]} Rf8 {[%emt 0:00:28]} 27. Qe6+ {[%emt 0:00:31]} Kh8 {[%emt 0:00:08]} 28. Bf3 {[%emt 0:00:43]} Qf2 {[%emt 0:00:34]} 0-1

[Event "FIDE WYCC Open U14 2023"]
[Site "Montesilvano"]
[Date "2023.11.24"]
[Round "11.18"]
[White "Warchol, Kamil"]
[Black "Tenuunbold, Battulga"]
[Result "1/2-1/2"]
[ECO "B31"]
[WhiteElo "2095"]
[BlackElo "2290"]
[Annotator "ChessBase"]
[PlyCount "65"]
[EventDate "2023.11.13"]
[EventType "swiss"]
[EventCountry "ITA"]
[SourceTitle "playchess.com"]
[Source "ChessBase"]
[SourceQuality "1"]
[TimeControl "40/5400+30:1800+30"]

1. e4 {[%emt 0:00:04]} c5 {[%emt 0:00:09]} 2. Nf3 {[%emt 0:00:13]} Nc6 {[%emt 0:00:30]} 3. Bb5 {[%emt 0:00:19]} g6 {[%emt 0:00:13]} 4. O-O {[%emt 0:01:57]} Bg7 {[%emt 0:00:19]} 5. c3 {[%emt 0:00:23]} Nf6 {[%emt 0:03:23]} 6. Re1 {[%emt 0:00:50]} O-O {[%emt 0:02:23]} 7. d4 {[%emt 0:00:59]} cxd4 {[%emt 0:02:12]} 8. cxd4 {[%emt 0:00:34]} d5 {[%emt 0:02:16]} 9. e5 {[%emt 0:00:09]} Ne8 {[%emt 0:03:44]} 10. Bxc6 {[%emt 0:10:25]} bxc6 {[%emt 0:00:42]} 11. Nc3 {[%emt 0:00:16]} Bg4 {[%emt 0:06:21]} 12. h3 {[%emt 0:10:09]} Bxf3 {[%emt 0:00:13]} 13. Qxf3 {[%emt 0:01:11]} f6 {[%emt 0:00:09]} 14. exf6 {[%emt 0:05:32]} Bxf6 {[%emt 0:02:22]} 15. Qg4 {[%emt 0:07:09]} Nd6 {[%emt 0:03:34]} 16. Bg5 {[%emt 0:11:57]} Nf5 {[%emt 0:11:14]} 17. Rad1 {[%emt 0:08:38]} Qd6 {[%emt 0:15:28]} 18. Bxf6 {[%emt 0:02:24]} Qxf6 {[%emt 0:01:00]} 19. Na4 {[%emt 0:08:22]} Rfb8 {[%emt 0:11:09]} 20. a3 {[%emt 0:04:38]} a5 {[%emt 0:06:18]} 21. Re2 {[%emt 0:01:48]} Rb5 {[%emt 0:04:01]} 22. Nc5 {[%emt 0:04:19]} h5 {[%emt 0:04:09]} 23. Qf4 {[%emt 0:02:30]} Nxd4 {[%emt 0:00:42]} 24. Qxd4 {[%emt 0:01:54]} Qxd4 {[%emt 0:01:09]} 25. Rxd4 {[%emt 0:00:02]} Rxc5 {[%emt 0:00:10]} 26. Rxe7 {[%emt 0:02:01]} Rf8 {[%emt 0:02:29]} 27. f3 {[%emt 0:04:09]} Rc1+ {[%emt 0:06:23]} 28. Kh2 {[%emt 0:01:54]} Rf7 {[%emt 0:00:58]} 29. Re6 {[%emt 0:02:43]} Kg7 {[%emt 0:00:12]} 30. Ra4 {[%emt 0:00:32]} Rb7 {[%emt 0:08:35]} 31. b4 {[%emt 0:01:47]} axb4 {[%emt 0:00:08]} 32. axb4 {[%emt 0:02:19]} h4 {[%emt 0:01:21]} 33. b5 {[%emt 0:01:40]} 1/2-1/2

[Event "FIDE WYCC Open U14 2023"]
[Site "Montesilvano"]
[Date "2023.11.24"]
[Round "11.20"]
[White "Fan, Jingyi"]
[Black "Averin, Nikolay"]
[Result "0-1"]
[ECO "D02"]
[WhiteElo "2035"]
[BlackElo "2270"]
[Annotator "RC"]
[PlyCount "86"]
[EventDate "2023.11.13"]
[EventType "swiss"]
[EventCountry "ITA"]
[SourceTitle "playchess.com"]
[Source "ChessBase"]
[SourceQuality "1"]
[TimeControl "40/5400+30:1800+30"]

1. d4 {[%emt 0:00:03]} d5 {[%emt 0:01:58]} 2. Nf3 {[%emt 0:00:06]} Nf6 {[%emt 0:00:06]} 3. Bf4 {[%emt 0:00:06]} c5 {[%emt 0:00:53]} 4. e3 {[%emt 0:00:03]} Nc6 {[%emt 0:00:42]} 5. Nbd2 {[%emt 0:00:06]} cxd4 {[%emt 0:00:33]} 6. exd4 {[%emt 0:00:08]} Bf5 {[%emt 0:00:14]} 7. Bb5 {[%emt 0:00:05]} Qb6 {[%emt 0:03:30]} 8. c4 {[%emt 0:00:38]} dxc4 {[%emt 0:07:08]} 9. a4 {[%emt 0:00:07]} a6 {[%emt 0:13:24]} 10. Nxc4 {[%emt 0:00:56]} Qd8 {[%emt 0:00:45]} 11. Bxc6+ {[%emt 0:00:10]} bxc6 {[%emt 0:00:04]} 12. O-O {[%emt 0:02:33]} e6 {[%emt 0:04:13]} 13. a5 {[%emt 0:02:46]} Nd5 {[%emt 0:00:20]} 14. Bg3 {[%emt 0:09:12]} h5 {[%emt 0:33:22]} 15. Qa4 {[%emt 0:09:45]} Rc8 {[%emt 0:00:23]} 16. Rfc1 {[%emt 0:17:41]} f6 {[%emt 0:19:07]} 17. Qb3 {[%emt 0:12:27]} g5 {[%emt 0:08:12]} 18. h4 {[%emt 0:05:50]} g4 {[%emt 0:00:19]} 19. Nh2 {[%emt 0:01:10]} Rh7 {[%emt 0:00:41]} 20. Nf1 {[%emt 0:01:07]} Qd7 {[%emt 0:03:56]} 21. Nfe3 {[%emt 0:01:57]} Qb7 {[%emt 0:00:25]} 22. Qa4 {[%emt 0:02:15]} Nxe3 {[%emt 0:00:40]} 23. fxe3 {[%emt 0:04:10]} Be4 {[%emt 0:00:17]} 24. Rc3 {[%emt 0:01:49]} Qb5 {[%emt 0:00:37]} 25. Bd6 {[%emt 0:08:23]} Qxa4 {[%emt 0:00:37]} 26. Rxa4 {[%emt 0:00:02]} Rd8 {[%emt 0:00:32]} 27. Bxf8 {[%emt 0:00:33]} Kxf8 {[%emt 0:00:02]} 28. Nd2 {[%emt 0:00:28]} Bg6 {[%emt 0:00:06]} 29. Rb4 {[%emt 0:00:38]} Rc7 {[%emt 0:01:19]} 30. Rb6 {[%emt 0:01:14]} e5 {[%emt 0:00:10]} 31. Rcxc6 {[%emt 0:08:57]} Rxc6 {[%emt 0:00:07]} 32. Rxc6 {[%emt 0:00:07]} exd4 {[%emt 0:00:06]} 33. e4 {[%emt 0:01:32]} Ke7 {[%emt 0:01:08]} 34. e5 {[%emt 0:01:37]} Bd3 {[%emt 0:00:12]} 35. exf6+ {[%emt 0:02:37]} Kf7 {[%emt 0:00:07]} 36. Nf1 {[%emt 0:05:39]} Bb5 {[%emt 0:00:57]} 37. Rc5 {[%emt 0:00:44]} d3 {[%emt 0:00:13]} 38. Rc1 {[%emt 0:01:02]} Re8 {[%emt 0:01:33]} 39. b3 {[%emt 0:00:29]} Kxf6 {[%emt 0:00:19]} 40. Ng3 {[%emt 0:00:00]} d2 {[%emt 0:00:00]} 41. Nxh5+ {[%emt 0:01:27]} Kf7 {[%emt 0:01:44]} 42. Rc7+ {[%emt 0:00:16]} Re7 {[%emt 0:00:28]} 43. Rxe7+ {[%emt 0:00:04]} Kxe7 {[%emt 0:00:04]} 0-1

[Event "FIDE WYCC Open U14 2023"]
[Site "Montesilvano"]
[Date "2023.11.24"]
[Round "11.21"]
[White "Sodbilegt, Naranbold"]
[Black "Zhang, Brian"]
[Result "1-0"]
[ECO "B13"]
[WhiteElo "2151"]
[BlackElo "1867"]
[Annotator "RC"]
[PlyCount "75"]
[EventDate "2023.11.13"]
[EventType "swiss"]
[EventCountry "ITA"]
[SourceTitle "playchess.com"]
[Source "ChessBase"]
[SourceQuality "1"]
[TimeControl "40/5400+30:1800+30"]

1. e4 {[%emt 0:00:02]} c6 {[%emt 0:00:54]} 2. d4 {[%emt 0:00:06]} d5 {[%emt 0:00:16]} 3. exd5 {[%emt 0:00:07]} cxd5 {[%emt 0:00:17]} 4. Bd3 {[%emt 0:00:07]} Nc6 {[%emt 0:00:42]} 5. c3 {[%emt 0:00:22]} Nf6 {[%emt 0:00:52]} 6. Bf4 {[%emt 0:00:10]} Bg4 {[%emt 0:01:57]} 7. Qb3 {[%emt 0:00:07]} Qd7 {[%emt 0:01:47]} 8. Nd2 {[%emt 0:00:11]} e6 {[%emt 0:01:44]} 9. Ngf3 {[%emt 0:01:47]} Bd6 {[%emt 0:05:22]} 10. Bxd6 {[%emt 0:00:47]} Qxd6 {[%emt 0:00:13]} 11. O-O {[%emt 0:01:41]} O-O {[%emt 0:04:58]} 12. Rfe1 {[%emt 0:00:21]} Bxf3 {[%emt 0:11:30]} 13. Nxf3 {[%emt 0:01:38]} Nd7 {[%emt 0:03:21]} 14. Qc2 {[%emt 0:03:50]} h6 {[%emt 0:10:47]} 15. Re3 {[%emt 0:02:29]} Rfc8 {[%emt 0:07:11]} 16. Qe2 {[%emt 0:01:20]} Rab8 {[%emt 0:04:30]} 17. Nd2 {[%emt 0:03:05]} Ne7 {[%emt 0:05:26]} 18. Rf1 {[%emt 0:03:30]} Qc6 {[%emt 0:09:07]} 19. f4 {[%emt 0:10:40]} b5 {[%emt 0:09:30]} 20. g4 {[%emt 0:01:56]} b4 {[%emt 0:06:44]} 21. f5 {[%emt 0:10:59]} Nf8 {[%emt 0:04:56]} 22. f6 {[%emt 0:05:57]} Neg6 {[%emt 0:05:05]} 23. fxg7 {[%emt 0:01:22]} Kxg7 {[%emt 0:00:15]} 24. Qf2 {[%emt 0:00:29]} Rc7 {[%emt 0:01:51]} 25. h4 {[%emt 0:05:38]} bxc3 {[%emt 0:01:34]} 26. bxc3 {[%emt 0:00:05]} Rb2 {[%emt 0:01:20]} 27. h5 {[%emt 0:05:35]} Nh8 {[%emt 0:01:13]} 28. g5 {[%emt 0:00:40]} f5 {[%emt 0:00:32]} 29. gxf6+ {[%emt 0:01:16]} Kf7 {[%emt 0:00:24]} 30. Qg2 {[%emt 0:01:57]} Ke8 {[%emt 0:00:38]} 31. a4 {[%emt 0:06:07]} a6 {[%emt 0:00:28]} 32. Qe2 {[%emt 0:00:34]} Ra7 {[%emt 0:00:31]} 33. Rb1 {[%emt 0:02:01]} Rxb1+ {[%emt 0:00:31]} 34. Bxb1 {[%emt 0:00:08]} Nf7 {[%emt 0:00:29]} 35. Nf3 {[%emt 0:00:46]} Qxa4 {[%emt 0:00:30]} 36. Bg6 {[%emt 0:01:04]} Rb7 {[%emt 0:00:30]} 37. Rxe6+ {[%emt 0:03:14]} Kd8 {[%emt 0:00:31]} 38. Rxa6 {[%emt 0:00:28]} 1-0

[Event "FIDE WYCC Open U14 2023"]
[Site "Montesilvano"]
[Date "2023.11.24"]
[Round "11.22"]
[White "Bolat, Inayat"]
[Black "Myagmarsuren, Evsuld"]
[Result "1-0"]
[ECO "B90"]
[WhiteElo "2088"]
[BlackElo "2150"]
[Annotator "RC"]
[PlyCount "91"]
[EventDate "2023.11.13"]
[EventType "swiss"]
[EventCountry "ITA"]
[SourceTitle "playchess.com"]
[Source "ChessBase"]
[SourceQuality "1"]
[TimeControl "40/5400+30:1800+30"]

1. e4 {[%emt 0:00:05]} c5 {[%emt 0:00:02]} 2. Nf3 {[%emt 0:00:11]} d6 {[%emt 0:00:00]} 3. d4 {[%emt 0:00:07]} cxd4 {[%emt 0:00:02]} 4. Nxd4 {[%emt 0:00:08]} Nf6 {[%emt 0:00:04]} 5. Nc3 {[%emt 0:00:06]} a6 {[%emt 0:00:04]} 6. Bd3 {[%emt 0:00:13]} e5 {[%emt 0:00:04]} 7. Nde2 {[%emt 0:00:05]} Be6 {[%emt 0:01:17]} 8. f4 {[%emt 0:00:36]} Qc7 {[%emt 0:00:14]} 9. O-O {[%emt 0:00:38]} Nbd7 {[%emt 0:00:53]} 10. Kh1 {[%emt 0:00:28]} Be7 {[%emt 0:00:33]} 11. Ng3 {[%emt 0:01:34]} h5 {[%emt 0:00:52]} 12. fxe5 {[%emt 0:08:13]} dxe5 {[%emt 0:01:45]} 13. Nf5 {[%emt 0:00:27]} Bxf5 {[%emt 0:00:45]} 14. Rxf5 {[%emt 0:00:14]} h4 {[%emt 0:00:18]} 15. Bg5 {[%emt 0:01:42]} h3 {[%emt 0:01:30]} 16. g3 {[%emt 0:00:35]} O-O-O {[%emt 0:02:12]} 17. Qe2 {[%emt 0:01:05]} Kb8 {[%emt 0:02:00]} 18. Bc4 {[%emt 0:06:59]} Rhf8 {[%emt 0:12:05]} 19. Bxf6 {[%emt 0:06:06]} Nxf6 {[%emt 0:00:42]} 20. Nd5 {[%emt 0:02:33]} Nxd5 {[%emt 0:00:24]} 21. Bxd5 {[%emt 0:00:21]} g6 {[%emt 0:10:49]} 22. Rf3 {[%emt 0:00:36]} Ka7 {[%emt 0:05:23]} 23. Rb3 {[%emt 0:06:30]} b6 {[%emt 0:00:09]} 24. a4 {[%emt 0:01:30]} a5 {[%emt 0:00:17]} 25. Rc3 {[%emt 0:01:54]} Bc5 {[%emt 0:01:18]} 26. Qb5 {[%emt 0:01:16]} Qe7 {[%emt 0:06:20]} 27. b4 {[%emt 0:02:51]} Bxb4 {[%emt 0:00:40]} 28. Rc6 {[%emt 0:00:06]} Bc5 {[%emt 0:00:54]} 29. Rb1 {[%emt 0:00:35]} Rb8 {[%emt 0:03:37]} 30. Bc4 {[%emt 0:00:38]} Rb7 {[%emt 0:01:00]} 31. Qa6+ {[%emt 0:00:11]} Kb8 {[%emt 0:00:04]} 32. Bd5 {[%emt 0:00:25]} Bd4 {[%emt 0:08:42]} 33. c3 {[%emt 0:03:22]} Be3 {[%emt 0:01:08]} 34. c4 {[%emt 0:03:42]} Rd8 {[%emt 0:03:36]} 35. Rb3 {[%emt 0:29:34]} Bd4 {[%emt 0:02:52]} 36. g4 {[%emt 0:03:41]} Rxd5 {[%emt 0:03:35]} 37. cxd5 {[%emt 0:00:15]} Qh4 {[%emt 0:01:15]} 38. Rg3 {[%emt 0:03:48]} Bf2 {[%emt 0:07:04]} 39. d6 {[%emt 0:02:24]} Qd8 {[%emt 0:03:25]} 40. Rxh3 {[%emt 0:00:00]} Bc5 {[%emt 0:00:00]} 41. Rh7 {[%emt 0:03:44]} Qf6 {[%emt 0:03:07]} 42. Rc8+ {[%emt 0:01:47]} Kxc8 {[%emt 0:00:17]} 43. Qa8+ {[%emt 0:00:02]} Rb8 {[%emt 0:01:26]} 44. Qc6+ {[%emt 0:00:06]} Kd8 {[%emt 0:00:02]} 45. Rh8+ {[%emt 0:00:07]} Qxh8 {[%emt 0:00:15]} 46. Qc7+ {[%emt 0:00:03]} 1-0

[Event "FIDE WYCC Open U14 2023"]
[Site "Montesilvano"]
[Date "2023.11.24"]
[Round "11.23"]
[White "Malinowsky, Levi"]
[Black "Kazantzoglou, Stefanos"]
[Result "1-0"]
[ECO "C78"]
[WhiteElo "2135"]
[BlackElo "2031"]
[Annotator "NA RC"]
[PlyCount "103"]
[EventDate "2023.11.13"]
[EventType "swiss"]
[EventCountry "ITA"]
[SourceTitle "playchess.com"]
[Source "ChessBase"]
[SourceQuality "1"]
[TimeControl "40/5400+30:1800+30"]

1. e4 {[%emt 0:00:03]} e5 {[%emt 0:00:00]} 2. Nf3 {[%emt 0:00:08]} Nc6 {[%emt 0:00:03]} 3. Bb5 {[%emt 0:00:07]} a6 {[%emt 0:00:04]} 4. Ba4 {[%emt 0:00:04]} Nf6 {[%emt 0:00:08]} 5. O-O {[%emt 0:00:07]} b5 {[%emt 0:00:03]} 6. Bb3 {[%emt 0:00:04]} Bc5 {[%emt 0:00:03]} 7. a4 {[%emt 0:00:18]} Rb8 {[%emt 0:00:03]} 8. c3 {[%emt 0:01:02]} d6 {[%emt 0:00:01]} 9. d4 {[%emt 0:00:16]} Bb6 {[%emt 0:00:01]} 10. a5 {[%emt 0:00:19]} Ba7 {[%emt 0:00:02]} 11. h3 {[%emt 0:00:28]} Bb7 {[%emt 0:00:01]} 12. Be3 {[%emt 0:04:48]} Nxe4 {[%emt 0:01:46]} 13. d5 {[%emt 0:04:43]} Bxe3 {[%emt 0:00:41]} 14. dxc6 {[%emt 0:02:01]} Nxf2 {[%emt 0:00:06]} 15. Qe2 {[%emt 0:03:52]} Nxh3+ {[%emt 0:02:51]} 16. Kh1 {[%emt 0:00:44]} Nf4 {[%emt 0:07:07]} 17. Qxe3 {[%emt 0:01:29]} Bc8 {[%emt 0:02:07]} 18. Nbd2 {[%emt 0:05:14]} O-O {[%emt 0:07:20]} 19. Rae1 {[%emt 0:05:41]} Bf5 {[%emt 0:03:47]} 20. Ne4 {[%emt 0:02:35]} Kh8 {[%emt 0:07:24]} 21. g3 {[%emt 0:05:43]} Bxe4 {[%emt 0:01:20]} 22. Qxe4 {[%emt 0:02:41]} f5 {[%emt 0:00:26]} 23. Qc2 {[%emt 0:04:42]} Nh5 {[%emt 0:01:49]} 24. Qh2 {[%emt 0:02:26]} Qe8 {[%emt 0:02:53]} 25. g4 {[%emt 0:12:58]} fxg4 {[%emt 0:03:44]} 26. Ng5 {[%emt 0:01:03]} Qxc6+ {[%emt 0:03:34]} 27. Kg1 {[%emt 0:00:08]} g6 {[%emt 0:01:10]} 28. Nf7+ {[%emt 0:02:01]} Kg7 {[%emt 0:01:30]} 29. Qd2 {[%emt 0:03:33]} Qc5+ {[%emt 0:02:02]} 30. Kg2 {[%emt 0:02:47]} Nf4+ {[%emt 0:05:00]} 31. Rxf4 {[%emt 0:00:14]} exf4 {[%emt 0:00:06]} 32. Qxf4 {[%emt 0:00:40]} g5 {[%emt 0:01:28]} 33. Qxg4 {[%emt 0:02:26]} Rxf7 {[%emt 0:04:22]} 34. Bxf7 {[%emt 0:00:07]} Rf8 {[%emt 0:00:05]} 35. b4 {[%emt 0:02:30]} Qxc3 {[%emt 0:00:03]} 36. Qxg5+ {[%emt 0:02:28]} Kh8 {[%emt 0:00:02]} 37. Rc1 {[%emt 0:02:58]} Qb2+ {[%emt 0:05:24]} 38. Kh1 {[%emt 0:01:35]} Qf2 {[%emt 0:08:06]} 39. Bd5 {[%emt 0:02:54]} Qf5 {[%emt 0:06:07]} 40. Qxf5 {[%emt 0:00:00]} Rxf5 {[%emt 0:00:00]} 41. Bb7 {[%emt 0:02:19]} c5 {[%emt 0:00:36]} 42. Bxa6 {[%emt 0:00:37]} cxb4 {[%emt 0:00:49]} 43. Bb7 {[%emt 0:01:05]} Rf2 {[%emt 0:00:05]} 44. Ra1 {[%emt 0:00:40]} b3 {[%emt 0:00:07]} 45. Bd5 {[%emt 0:02:23]} b2 {[%emt 0:06:28]} 46. Rg1 {[%emt 0:00:17]} h5 {[%emt 0:00:20]} 47. a6 {[%emt 0:00:25]} Rf4 {[%emt 0:00:18]} 48. a7 {[%emt 0:01:17]} Rh4+ {[%emt 0:00:09]} 49. Kg2 {[%emt 0:00:04]} Rg4+ {[%emt 0:00:04]} 50. Kh3 {[%emt 0:00:12]} Rxg1 {[%emt 0:00:14]} 51. a8=Q+ {[%emt 0:00:09]} Kh7 {[%emt 0:00:03]} 52. Be4+ {[%emt 0:00:18]} 1-0